Cogmind - Beta 14 @@@ ROGUE MODE // 2024.12.08 @ 15:01:25 Player: K.Ioz Result: Self-destructed Performance ------------- Evolutions (1) 500 Regions Visited (3) 600 Robots Destroyed (16) 80 Value Destroyed (457) 457 Prototype IDs (0) 0 Alien Tech Used (0) 0 Bonus (0) 0 TOTAL SCORE: 1637 Bonus ------- None Cogmind --------- Core Integrity 400/400 Matter 210/300 Energy 160/160 System Corruption 0% Temperature Cool (0) Movement Walking (190) Ox1 Location -9/Materials Parts ------- > --- POWER (1) -------- Light Nuclear Core > --- PROPULSION (2) --- Aluminum Leg Aluminum Leg > --- UTILITY (4) ------ Large Storage Unit > --- WEAPON (2) ------- Medium Laser Assault Rifle > --- INVENTORY (15) --- Improved Heat Sink High-capacity Matter Pod (91) Sensor Array Signal Interpreter Small Laser Assault Rifle Light Cannon Light Cannon Mining Claw Peak State ------------ > --- POWER ------------ Light Nuclear Core > --- PROPULSION ------- Light Treads Light Treads > --- UTILITY ---------- Improved Heat Sink Small Storage Unit > --- WEAPON ----------- Small Laser Assault Rifle > --- INVENTORY -------- Light Nuclear Core Aluminum Leg Aluminum Leg High-capacity Matter Pod Sensor Array Signal Interpreter Medium Laser Light Assault Rifle [Rating: 12] Favorites ----------- Power Light Nuclear Core Engine Ion Engine Power Core Light Nuclear Core Propulsion Light Treads Treads Light Treads Leg Aluminum Leg Utility Small Storage Unit Device Heat Sink Storage Small Storage Unit Weapon Assault Rifle Energy Gun Small Laser Ballistic Gun Assault Rifle Slashing Weapon Mining Claw Build | -11 -10 -10 -9 ------- Run | Yrd Mat Min Mat Slots Evolved 2 | . . . 2 Power . | . . . . Propulsion . | . . . . Utility 2 | . . . 2 Weapon . | . . . . Parts Attached 20 | 5 10 1 4 Power 4 | 1 2 . 1 Engine 1 | 1 . . . Core 3 | . 2 . 1 Reactor . | . . . . Propulsion 5 | 2 1 . 2 Treads 3 | 2 1 . . Leg 2 | . . . 2 Wheel . | . . . . Hover . | . . . . Flight . | . . . . Utility 5 | 1 4 . . Device 3 | . 3 . . Storage 2 | 1 1 . . Processor . | . . . . Hackware . | . . . . Protection . | . . . . Artifact . | . . . . Weapon 6 | 1 3 1 1 Energy Gun 2 | . 1 . 1 Energy Cannon . | . . . . Ballistic Gun 3 | 1 2 . . Ballistic Cannon . | . . . . Launcher . | . . . . Special Weapon . | . . . . Impact Weapon . | . . . . Slashing Weapon 1 | . . 1 . Piercing Weapon . | . . . . Special Melee Weapon . | . . . . Unidentified Prototypes . | . . . . Parts Lost 4 | . . 4 . Power 1 | . . 1 . Propulsion 2 | . . 2 . Utility 1 | . . 1 . Weapon . | . . . . Highest Loss Streak 4 | . . 4 . To Critical Strikes . | . . . . Average Slot Usage (%) 96 | . 97 97 62 Engine 3 | . 3 . . Core 10 | . 10 11 7 Treads 27 | . 28 28 . Device 12 | . 12 14 . Storage 13 | . 14 14 11 Energy Gun 12 | . 12 . 7 Ballistic Gun 13 | . 14 14 11 Peak Build Rating 12 | 5 12 10 9 Average Rating 8 | 3 9 9 8 On Entrance 4 | . 5 10 4 Naked Turns . | . . . . Heaviest Build 30 | 12 29 30 29 Greatest Support 40 | 40 40 40 20 Greatest Overweight (x) 7 | . . 7 1 Average Overweight (x) . | . . . 1 Largest Inventory Capacity 15 | 8 15 15 15 Average Capacity 9 | 6 9 15 15 Most Carried 12 | 5 12 12 11 Average Carried 8 | 3 8 12 9 Final Capacity 15 | 8 15 15 15 Final Carried 12 | 5 12 12 9 Class Distribution -------------------- 100% | Mutant Dominant Class ---------------- Mutant | -10/Materials Mutant | -10/Mines Mutant | -9/Materials Resources | -11 -10 -10 -9 ----------- Run | Yrd Mat Min Mat Matter Collected 525 | 191 334 . . Remotely . | . . . . Salvage Created 522 | . 522 . . Parts 41 | . 41 . . Haulers Intercepted . | . . . . Recyclers Shooed 1 | . 1 . . Parts Field Recycled . | . . . . Retrieved Matter . | . . . . Parts Self-Destructed . | . . . . Prevented . | . . . . Kills | -11 -10 -10 -9 ------- Run | Yrd Mat Min Mat Combat Hostiles Destroyed 13 | . 13 . . Guns 13 | . 13 . . Classes Destroyed 3 | . 3 . . Watcher 3 | . 3 . . Swarmer 3 | . 3 . . Grunt 10 | . 10 . . Best Kill Streak 6 | . 6 . . Combat Bots Only 5 | . 5 . . Max Kills in Single Turn 1 | . 1 . . Gunslinging . | . . . . Exploded . | . . . . Melee . | . . . . Uniques/NPCs Destroyed . | . . . . Combat | -11 -10 -10 -9 -------- Run | Yrd Mat Min Mat Hostile Shots Fired 74 | . 59 15 . Missed 19 | . 17 2 . Damage Taken 726 | . 508 218 . Core 117 | . 63 54 . Absorbed by Shields . | . . . . Core Remaining (%) 76 | 100 . 53 . Volleys Fired 48 | . 48 . . Largest 2 | . 2 . . Hottest 60 | . 60 . . Shots Fired 94 | . 94 . . Gun 94 | . 94 . . Cannon . | . . . . Launcher . | . . . . Special . | . . . . Kinetic 48 | . 48 . . Thermal 46 | . 46 . . Explosive . | . . . . Electromagnetic . | . . . . Robot Hit Streak 18 | . 18 . . Robot Miss Streak 2 | . 2 . . Penetration Max . | . . . . Secondary Targets 2 | . 2 . . Max Gunslinging Chain 1 | . 1 . . Shots Hit Robots 68 | . 68 . . Core Hits 29 | . 29 . . Critical Kills . | . . . . Critical Parts Destroyed . | . . . . Critical Strikes . | . . . . Melee Attacks 3 | . . 3 . Impact . | . . . . Slashing 3 | . . 3 . Piercing . | . . . . Sneak Attacks . | . . . . Combat Hostiles . | . . . . Follow-up Attacks . | . . . . Damage Inflicted 806 | . 806 . . Guns 806 | . 806 . . Cannons . | . . . . Explosions . | . . . . Melee . | . . . . Ramming . | . . . . Kinetic 463 | . 463 . . Thermal 343 | . 343 . . Explosive . | . . . . Electromagnetic . | . . . . Impact . | . . . . Slashing . | . . . . Piercing . | . . . . Highest Corruption . | . . . . Average Corruption . | . . . . Corruption Purged . | . . . . Corruption Blocked . | . . . . Overload Shots . | . . . . Overflow Damage . | . . . . Projectiles . | . . . . Explosions . | . . . . Melee . | . . . . Knockbacks . | . . . . Impact . | . . . . Kinetic . | . . . . Secondary . | . . . . Self-Inflicted Damage . | . . . . Shots . | . . . . Rammed . | . . . . Targets Rammed . | . . . . Kicked . | . . . . Crushed . | . . . . Highest Temperature 6 | . 6 . . Average Temperature 4 | . 4 . . Received Heat Transfer 243 | . 243 . . Siege Activations . | . . . . Robots Corrupted . | . . . . Combat Hostiles . | . . . . Parts Fried . | . . . . Impact Corruptions . | . . . . Robots Melted . | . . . . Combat Hostiles . | . . . . Parts Melted . | . . . . Heat Transferred 775 | . 775 . . Parts Sabotaged . | . . . . Parts Stolen . | . . . . Parts Stripped . | . . . . Power Chain Reactions . | . . . . Alert | -11 -10 -10 -9 ------- Run | Yrd Mat Min Mat Peak Influence 231 | . 231 19 . Initial 17 | . . 17 . Average 78 | . 88 16 . Maximum Alert Level 1 | . 1 . . Low Security (%) 85 | 100 83 100 100 Level 1 14 | . 16 . . Level 2 . | . . . . Level 3 . | . . . . Level 4 . | . . . . Level 5 . | . . . . High Security . | . . . . Max Security . | . . . . Squads Dispatched 3 | . 3 . . Investigation 1 | . 1 . . Extermination . | . . . . Reinforcement 2 | . 2 . . Assault . | . . . . Garrison . | . . . . Intercept . | . . . . Searches Triggered . | . . . . Construction Impeded . | . . . . Haulers Reinforced . | . . . . Active Scanning Responses . | . . . . Cargo Convoy Interrupts . | . . . . Stealth | -11 -10 -10 -9 --------- Run | Yrd Mat Min Mat Distress Signals 1 | . 1 . . Communications Jammed . | . . . . Distress Signals . | . . . . Times Spotted 36 | . 26 10 . Peak Tracking Total 11 | . 4 11 . Tactical Retreats 3 | . 3 . . Traps | -11 -10 -10 -9 ------- Run | Yrd Mat Min Mat Traps Triggered 3 | . 3 . . Indirectly . | . . . . Trap Hack Attempts . | . . . . Triggered . | . . . . Disarmed . | . . . . Reprogrammed . | . . . . Reused . | . . . . Traps Extracted . | . . . . Installed . | . . . . Triggered . | . . . . Machines | -11 -10 -10 -9 ---------- Run | Yrd Mat Min Mat Machines Disabled . | . . . . Max in Single Turn . | . . . . Machines Repaired . | . . . . Machines Dismantled . | . . . . Machines Sabotaged . | . . . . Overloaded Fab Kills . | . . . . Hacking | -11 -10 -10 -9 --------- Run | Yrd Mat Min Mat Machines Accessed 7 | . 6 . 1 Terminals 7 | . 6 . 1 Fabricators . | . . . . Repair Stations . | . . . . Recycling Units . | . . . . Scanalyzers . | . . . . Garrison Access . | . . . . Total Hacks 22 | . 20 . 2 Successful 12 | . 11 . 1 Failed 10 | . 9 . 1 Catastrophic 2 | . 2 . . Database Lockouts . | . . . . Manual 17 | . 15 . 2 Terminals 22 | . 20 . 2 Fabricators . | . . . . Repair Stations . | . . . . Recycling Units . | . . . . Scanalyzers . | . . . . Garrison Access . | . . . . Terminal Hacks 3 | . 3 . . Robot Analysis 1 | . 1 . . Unreport Threat 1 | . 1 . . Locate Traps 1 | . 1 . . Fabricator Hacks . | . . . . Repair Station Hacks . | . . . . Recycling Unit Hacks . | . . . . Scanalyzer . | . . . . Garrison Access Hacks . | . . . . Unauthorized Hacks 9 | . 8 . 1 Terminals 9 | . 8 . 1 Botnet 3 | . 3 . . Skim 6 | . 5 . 1 Fabricators . | . . . . Repair Stations . | . . . . Recycling Units . | . . . . Scanalyzers . | . . . . Garrison Access . | . . . . Data Cores Recovered . | . . . . Used . | . . . . Hacking Detections 7 | . 6 . 1 Full Trace Events . | . . . . Feedback Events . | . . . . Feedback Blocked . | . . . . Robot Schematics Acquired . | . . . . Robots Built . | . . . . Authchips . | . . . . Time . | . . . . Total Robot Build Rating . | . . . . Part Schematics Acquired . | . . . . Parts Built . | . . . . Authchips . | . . . . Time . | . . . . Total Part Build Rating . | . . . . Parts Repaired . | . . . . Time . | . . . . Parts Recycled . | . . . . Recycled Matter . | . . . . Retrieved Matter . | . . . . Retrieved Components . | . . . . Parts Scanalyzed . | . . . . Part Schematics Acquired . | . . . . Parts Damaged . | . . . . Bothacking | -11 -10 -10 -9 ------------ Run | Yrd Mat Min Mat Used RIF Installer . | . . . . Robots Hacked . | . . . . Non-combat . | . . . . Combat . | . . . . Robot Hacks Applied . | . . . . Relay Couplers Released . | . . . . Fabnet Peak Effective % . | . . . . Robots Rewired . | . . . . Allies Hacked . | . . . . Hacks Repelled . | . . . . Allies | -11 -10 -10 -9 -------- Run | Yrd Mat Min Mat Total Allies . | . . . . Largest Group . | . . . . Highest-Rated Group . | . . . . Highest-Rated Ally . | . . . . Total Orders . | . . . . Ally Attacks . | . . . . Total Damage . | . . . . Kills . | . . . . Allies Corrupted . | . . . . Allies Melted . | . . . . Intel | -11 -10 -10 -9 ------- Run | Yrd Mat Min Mat Robot Analysis Total 1 | . 1 . . Derelict Logs Recovered 1 | . . 1 . Drone Launches . | . . . . Drone Recoveries . | . . . . Exploration | -11 -10 -10 -9 ------------- Run | Yrd Mat Min Mat Turns Passed 1439 | 94 1266 57 22 Spaces Moved 761 | 53 670 29 9 Core 3 | 2 . 1 . Treads 749 | 51 670 28 . Legs 9 | . . . 9 Wheels . | . . . . Hover . | . . . . Flight . | . . . . Fastest Speed 50 | 50 160 160 190 Average Speed 160 | 155 160 171 190 Slowest Speed 400 | 160 160 400 190 Overloaded Moves . | . . . . Propulsion Burnouts . | . . . . Robots Hopped . | . . . . Cave-ins Triggered . | . . . . Exploration Rate (%) 26 | 4 91 8 3 Regions Visited 3 Branch Regions 1 Pre-discovered Areas 1 | . . 1 . Known Exits Taken . | . . . . Unknown Exits Taken 3 | 1 1 1 . Scrap Searched . | . . . . Spaces Dug 2 | . . 2 . Terrain Destroyed 2 | . . 2 . Melee 2 | . . 2 . Projectile . | . . . . AOE . | . . . . Terrain Rammed . | . . . . Walls Destroyed . | . . . . Machines Disabled . | . . . . Actions | -11 -10 -10 -9 --------- Run | Yrd Mat Min Mat Total 878 | 62 771 32 13 Wait 24 | . 24 . . Move 758 | 52 669 28 9 Hop . | . . . . Pick Up 17 | 5 12 . . Fast Attach 9 | 5 4 . . Attach 4 | . 1 . 3 Detach . | . . . . Swap 7 | . 5 1 1 Drop 8 | . 8 . . Fire 48 | . 48 . . Melee 3 | . . 3 . Ram . | . . . . Kick . | . . . . Crush . | . . . . Escape Stasis . | . . . . Rewire . | . . . . Trap . | . . . . Miscellaneous . | . . . . Route ------- -11/Scrapyard -10/Materials (discovered 4 exits: *Mat x2 / [*Min x2]) -10/Mines -9/Materials History --------- Turn | Location | Event 13 | -11/Scrapyard | Discovered new exit (range 14) 95 | -11/Scrapyard | Entered Materials 303 | -10/Materials | Discovered new exit (range 12) 304 | -10/Materials | Build established: Mutant 540 | -10/Materials | Discovered new exit (range 16) 662 | -10/Materials | Discovered new exit (range 6) 866 | -10/Materials | Discovered new exit (range 9) 1346 | -10/Materials | Learned 4 Subcaves zone layouts 1361 | -10/Materials | Entered Mines 1363 | -10/Mines | Discovered new exit (range 9) 1399 | -10/Mines | Assembled infested the area 1404 | -10/Mines | Learned location of Zion (-7) 1418 | -10/Mines | Entered Materials 1418 | -9/Materials | Evolved 2 slots: Utility x2 1440 | -9/Materials | Self-destructed Last Messages --------------- 01412_ K-01 Serf collects debris. 01414_ Structural Scanner destroyed. 01414_ as-50291 sneak attacks. 01414_ as-20476 sneak attacks. 01414_ U-05 Engineer destroyed. 01414_ Lgt. Treads destroyed. 01415_ K-01 Serf collects debris. 01416_ Lgt. Treads destroyed. 01417_ as-91171 sneak attacks. 01417_ K-01 Serf destroyed. PARAMETERS=UTILITY+2 LOCATION=UNKNOWN GOAL=ESCAPE 01440_ Connecting with Terminal... 01440_ Current location identified: Materials >>Trojan(Skim) Trojan loaded successfully. Testing... Terminal linked with 0 systems. Please expand to 4 more systems! Map ----- +----------------------------------------------------+ | | | | | | | | | | | | | | | | | | | | | | | | | | | | | | | | | | | | | | | | | | | | | | | ????????????????###########????????????????? | | ????????????????# T #????????????????? | | ????????????????# @ """ #????????????????? | | ????????????????# """ #????????????????? | | ????????????????# """ #????????????????? | | ????????????????# """ #????????????????? | | ????????????????# """ #????????????????? | | ????????????????# #????????????????? | | ????????????????# #????????????????? | | ????????????????######+########+#??????????? | | ??????????????????# ??????? | | ??????????????????# ??????? | | ??????????????????# ??????? | | ??????????????????#######+###+######???????? | | ???????????????????????????????????????????? | | ???????????????????????????????????????????? | | ???????????????????????????????????????????? | | ???????????????????????????????????????????? | | ???????????????????????????????????????????? | | ???????????????????????????????????????????? | | ???????????????????????????????????????????? | | ???????????????????????????????????????????? | | ???????????????????????????????????????????? | | ???????????????????????????????????????????? | | ???????????????????????????????????????????? | | ???????????????????????????????????????????? | | ???????????????????????????????????????????? | +----------------------------------------------------+ Best States ------------- Heat Dissipation 39 Energy Generation 14 Energy Capacity 250 Matter Stores 300 Matter Capacity 300 Sight Range 16 Terrain Scan Density 10 Evasion (%) 40 Recoil Reduction 2 Item Schematics ----------------- None Robot Schematics ------------------ None Fabricated ------------ Nothing Alien Tech Used ----------------- None Achievements -------------- None Challenges ------------ None Game ------ Seed SapperInertialAmplifier Manual? 0 Play Time 00:20:07 Cumulative 216.6 hours Start 2024.12.08 @ 13:38:42 End 2024.12.08 @ 15:01:25 Sessions 1 Manual Loads 0 Difficulty Rogue Special Mode None Game No. 157 Rogue 124 Adventurer 0 Explorer 33 Win Type - Total 4 Types 4/0/0/0/0/0/0/0/0 Lore% 39 Gallery% 63 Achievement% 60 Wizard Run 0 Options --------- Layout 2 ASCII 0 Keyboard 1 Movement Vi Keybinds 0 Fullscreen 1 Font 16/X11CapsBold Map View 53x45 Zoom Use 0% Tactical HUD 1 Map Filters NONE Filters LOW_CONTRAST(47,30,31) Steam 1 RUN: ae18f05d-db68-4312-ab91-e2a605c59955